[Event "Moscow Open-F 2019"]
[Site "Moscow"]
[Date "2019.01.27"]
[Round "3"]
[White "Loginov, Ilya"]
[Black "Antonov, Andrey P."]
[Result "0-1"]
[ECO "C02"]
[WhiteElo "1893"]
[BlackElo "2150"]
[Annotator "ChessBase"]
[PlyCount "94"]
[EventDate "2019.01.26"]
[EventType "swiss"]
[EventCountry "RUS"]
[SourceTitle "playchess.com"]
[Source "ChessBase"]
[SourceQuality "1"]
[TimeControl "40/5400+30:1800+30"]

1. e4 {[%emt 0:06:37]} e6 {[%emt 0:00:00]} 2. d4 {[%emt 0:00:20]} d5 {[%emt 0:00:00]} 3. e5 {[%emt 0:00:10]} c5 {[%emt 0:00:00]} 4. c3 {[%emt 0:00:09]} Qb6 {[%emt 0:00:00]} 5. Nf3 {[%emt 0:00:09]} Nc6 {[%emt 0:00:03]} 6. a3 {[%emt 0:00:06]} Nh6 {[%emt 0:00:15]} 7. b4 {[%emt 0:00:07]} cxd4 {[%emt 0:00:05]} 8. cxd4 {[%emt 0:00:08]} Nf5 {[%emt 0:00:03]} 9. Bb2 {[%emt 0:00:26]} Bd7 {[%emt 0:00:41]} 10. g4 {[%emt 0:00:51]} Nfe7 {[%emt 0:00:05]} 11. Nc3 {[%emt 0:01:23]} Na5 {[%emt 0:00:35]} 12. Na4 {[%emt 0:01:38]} Qc6 {[%emt 0:11:12]} 13. b5 {[%emt 0:01:10]} Qc7 {[%emt 0:00:22]} 14. Nc5 {[%emt 0:13:49]} Nc4 {[%emt 0:15:14]} 15. Bxc4 {[%emt 0:00:30]} dxc4 {[%emt 0:00:05]} 16. Nd2 Bxb5 {[%emt 0:12:25]} 17. a4 {[%emt 0:32:40]} Bc6 {[%emt 0:02:10]} 18. Nxc4 {[%emt 0:00:07]} Ng6 {[%emt 0:06:13]} 19. O-O {[%emt 0:01:20]} Rd8 {[%emt 0:12:58]} 20. Qb3 {[%emt 0:00:59]} Nf4 {[%emt 0:13:28]} 21. Qe3 {[%emt 0:02:24]} Ng2 {[%emt 0:03:27]} 22. Qg3 {[%emt 0:04:16]} h5 {[%emt 0:00:10]} 23. f3 {[%emt 0:01:08]} hxg4 {[%emt 0:04:29]} 24. Qxg2 {[%emt 0:01:43]} gxf3 {[%emt 0:03:14]} 25. Qc2 {[%emt 0:07:27]} Rh6 {[%emt 0:03:42]} 26. Rf2 {[%emt 0:00:50]} Be7 {[%emt 0:02:18]} 27. Rc1 {[%emt 0:03:38]} Bh4 {[%emt 0:01:51]} 28. Ne4 {[%emt 0:06:09]} Bxf2+ {[%emt 0:00:57]} 29. Qxf2 {[%emt 0:00:15]} f5 {[%emt 0:02:16]} 30. Ncd6+ {[%emt 0:00:42]} Rxd6 {[%emt 0:02:53]} 31. Nxd6+ {[%emt 0:00:23]} Kd7 {[%emt 0:00:29]} 32. Qg3 {[%emt 0:01:14]} g6 {[%emt 0:01:03]} 33. Nf7 {[%emt 0:01:38]} Rh5 {[%emt 0:01:07]} 34. Rc2 {[%emt 0:05:00]} Qa5 {[%emt 0:01:12]} 35. Rf2 {[%emt 0:05:23]} Ke7 {[%emt 0:00:26]} 36. Kf1 {[%emt 0:02:34]} Kxf7 {[%emt 0:00:31]} 37. Rc2 {[%emt 0:00:33]} Bxa4 {[%emt 0:01:00]} 38. Rc5 {[%emt 0:00:30]} Qa6+ {[%emt 0:01:17]} 39. Kg1 {[%emt 0:00:25]} Qb6 {[%emt 0:00:37]} 40. Bc1 {[%emt 0:00:36]} Bc6 {[%emt 0:00:18]} 41. Qf2 {[%emt 0:30:27]} Qb4 {[%emt 0:30:32]} 42. Bd2 {[%emt 0:00:34]} Qb1+ {[%emt 0:00:14]} 43. Rc1 {[%emt 0:00:27]} Qe4 {[%emt 0:00:09]} 44. Ra1 {[%emt 0:00:33]} Rh4 {[%emt 0:00:47]} 45. Kh1 {[%emt 0:00:29]} Qxd4 {[%emt 0:00:43]} 46. Rf1 {[%emt 0:00:07]} Qxf2 {[%emt 0:00:47]} 47. Rxf2 {[%emt 0:00:09]} Re4 {[%emt 0:00:30]} 0-1

[Event "Moscow Open-F 2019"]
[Site "Moscow"]
[Date "2019.01.28"]
[Round "4"]
[White "Fotin, Vladimir"]
[Black "Jaiswal, Rupesh"]
[Result "1-0"]
[ECO "A48"]
[WhiteElo "2341"]
[BlackElo "2141"]
[Annotator "NA RC"]
[PlyCount "53"]
[EventDate "2019.01.26"]
[EventType "swiss"]
[EventCountry "RUS"]
[SourceTitle "playchess.com"]
[Source "ChessBase"]
[SourceQuality "1"]
[TimeControl "40/5400+30:1800+30"]

1. d4 {[%emt 0:00:00]} Nf6 {[%emt 0:01:45]} 2. Nf3 {[%emt 0:00:15]} g6 {[%emt 0:00:38]} 3. Nbd2 {[%emt 0:00:21]} d5 {[%emt 0:01:21]} 4. b4 {[%emt 0:00:20] D02: 1 d4 d5 2 Nf3 sidelines, including 2...Nf6 3 g3 and 2...Nf6 3 Bf4} (4. e3 Bg7 5. b4 O-O 6. Bb2 c6 7. c4 Nbd7 8. a4 Ne4 9. cxd5 Nxd2 10. Qxd2 cxd5 11. Bd3 Nf6 12. O-O Ne4 13. Qe2 Nd6 14. Rfc1 Bf5 15. Bxf5 gxf5 {1-0 (47) Sargissian,G (2689)-Kovalev,V (2683) St Petersburg 2018}) 4... a5 {[%emt 0:01:50]} 5. b5 {[%emt 0:00:12]} Bg7 {[%emt 0:00:51]} 6. e3 {[%emt 0:00:17]} O-O {[%emt 0:00:25]} 7. Be2 {[%emt 0:00:44]} c5 {[%emt 0:00:34]} 8. bxc6 bxc6 {[%emt 0:00:53]} 9. Ba3 {[%emt 0:01:52]} Re8 {[%emt 0:02:08]} 10. O-O {[%emt 0:00:47]} Ba6 {[%emt 0:03:27]} 11. Rb1 {[%emt 0:01:43]} Nfd7 {[%emt 0:02:01]} 12. c4 {[%emt 0:02:35]} e5 $146 {[%emt 0:04:57]} ({Predecessor:} 12... e6 13. Re1 {1-0 (54) Olson,H (2123)-Srebrnic,V (2136) Trieste 2017}) 13. dxe5 {[%emt 0:00:30]} Nxe5 {[%emt 0:00:30]} 14. Nxe5 Rxe5 {[%emt 0:02:36]} 15. Nf3 {[%emt 0:13:46]} Re4 {[%emt 0:02:30]} 16. cxd5 {[%emt 0:09:29]} cxd5 {[%emt 0:03:20]} 17. Bb5 {[%emt 0:01:49]} Rb4 {[%emt 0:11:13]} 18. Bxb4 {[%emt 0:26:31]} Bxb5 {[%emt 0:00:06]} 19. Be7 {[%emt 0:01:36]} Qd7 {[%emt 0:00:40]} 20. Qb3 {[%emt 0:01:24]} Bxf1 {[%emt 0:05:10]} 21. Qxb8+ {[%emt 0:01:55]} Rxb8 {[%emt 0:02:10]} 22. Rxb8+ {[%emt 0:00:26]} Bf8 $1 {[%emt 0:00:11]} 23. Bxf8 {[%emt 0:00:40]} Ba6 {[%emt 0:01:07]} 24. Ne5 {[%emt 0:08:35]} Qe6 $1 {[%emt 0:09:15]} 25. Rd8 {[%emt 0:00:47]} Bb5 $18 {[%emt 0:04:52]} (25... Qb6 $1 $14 26. Be7+ Kg7) 26. Bh6+ {[%emt 0:00:34]} Be8 {[%emt 0:01:57]} 27. Ng4 {[%emt 0:00:11]} 1-0

[Event "Moscow Open-F 2019"]
[Site "Moscow"]
[Date "2019.01.28"]
[Round "4"]
[White "Razumovskiy, Mikhail"]
[Black "Oguzov, Shamil"]
[Result "1/2-1/2"]
[ECO "A57"]
[WhiteElo "1974"]
[BlackElo "2196"]
[Annotator "RC"]
[PlyCount "130"]
[EventDate "2019.01.26"]
[EventType "swiss"]
[EventCountry "RUS"]
[SourceTitle "playchess.com"]
[Source "ChessBase"]
[SourceQuality "1"]
[TimeControl "40/5400+30:1800+30"]

1. d4 Nf6 {[%emt 0:06:50]} 2. c4 {[%emt 0:00:00]} c5 {[%emt 0:00:05]} 3. d5 {[%emt 0:00:27]} b5 4. cxb5 {[%emt 0:00:37]} a6 {[%emt 0:00:08]} 5. b6 {[%emt 0:00:41]} d6 {[%emt 0:00:25]} 6. Nc3 {[%emt 0:01:38]} Nbd7 {[%emt 0:00:09]} 7. Nf3 {[%emt 0:00:55]} g6 {[%emt 0:00:33]} 8. e4 {[%emt 0:02:02]} Bg7 {[%emt 0:00:40]} 9. Bd3 {[%emt 0:03:59]} O-O {[%emt 0:00:14]} 10. O-O {[%emt 0:00:05]} Nxb6 {[%emt 0:00:13]} 11. h3 {[%emt 0:10:59]} e6 {[%emt 0:04:21]} 12. dxe6 {[%emt 0:13:58]} Bxe6 {[%emt 0:00:35]} 13. Bg5 h6 {[%emt 0:05:35]} 14. Bh4 {[%emt 0:07:11]} g5 {[%emt 0:02:01]} 15. Bg3 {[%emt 0:00:26]} d5 {[%emt 0:00:19]} 16. e5 Nfd7 {[%emt 0:21:23]} 17. Rc1 {[%emt 0:09:47]} Qe7 {[%emt 0:04:23]} 18. Bb1 {[%emt 0:01:13]} Rfd8 {[%emt 0:00:43]} 19. Qe2 {[%emt 0:08:39]} Nf8 {[%emt 0:00:40]} 20. Nh2 {[%emt 0:09:59]} Ng6 {[%emt 0:28:52]} 21. Qh5 {[%emt 0:06:40]} Nf4 {[%emt 0:00:31]} 22. Bxf4 {[%emt 0:00:53]} gxf4 {[%emt 0:00:01]} 23. Nf3 {[%emt 0:01:30]} f6 {[%emt 0:09:13]} 24. Rfe1 {[%emt 0:01:36]} fxe5 {[%emt 0:01:58]} 25. Nxe5 {[%emt 0:00:09]} Qf6 {[%emt 0:01:50]} 26. Bg6 {[%emt 0:03:35]} Nd7 {[%emt 0:05:11]} 27. Nf7 {[%emt 0:01:18]} Bxf7 {[%emt 0:00:49]} 28. Bxf7+ {[%emt 0:02:14]} Qxf7 {[%emt 0:00:12]} 29. Qxf7+ {[%emt 0:00:51]} Kxf7 {[%emt 0:00:04]} 30. Nxd5 {[%emt 0:00:04]} Nf6 {[%emt 0:03:24]} 31. Nxf4 {[%emt 0:03:51]} Rac8 {[%emt 0:00:02]} 32. b3 Rd6 {[%emt 0:01:41]} 33. Re5 {[%emt 0:01:38]} Rdc6 {[%emt 0:01:30]} 34. Rc4 {[%emt 0:00:35]} Nd7 {[%emt 0:01:08]} 35. Rd5 {[%emt 0:00:31]} Nb6 {[%emt 0:00:03]} 36. Rf5+ {[%emt 0:00:12]} Rf6 {[%emt 0:00:15]} 37. Rxf6+ {[%emt 0:01:59]} Bxf6 {[%emt 0:00:03]} 38. Rc1 {[%emt 0:00:58]} Bd4 {[%emt 0:00:04]} 39. Ne2 {[%emt 0:00:25]} Rd8 {[%emt 0:01:20]} 40. Kf1 {[%emt 0:00:39]} Nd5 {[%emt 0:00:40]} 41. Rd1 {[%emt 0:31:32]} Nb4 {[%emt 0:30:02]} 42. a4 {[%emt 0:00:32]} Nc6 {[%emt 0:00:43]} 43. g4 {[%emt 0:00:33]} Rb8 {[%emt 0:00:36]} 44. Rd3 {[%emt 0:00:51]} Ke6 {[%emt 0:01:13]} 45. f4 {[%emt 0:00:52]} Nb4 {[%emt 0:00:39]} 46. Nxd4+ {[%emt 0:00:56]} Kd5 {[%emt 0:00:05]} 47. Nc6+ {[%emt 0:00:07]} Kxc6 {[%emt 0:00:02]} 48. Rg3 {[%emt 0:01:08]} Rf8 {[%emt 0:00:57]} 49. f5 {[%emt 0:00:03]} Kd5 {[%emt 0:00:42]} 50. Ke2 {[%emt 0:00:30]} Kd4 {[%emt 0:00:50]} 51. Rf3 {[%emt 0:00:30]} Nd5 {[%emt 0:00:15]} 52. Rf1 {[%emt 0:02:03]} Ke4 {[%emt 0:00:45]} 53. Rc1 {[%emt 0:01:16]} Nf4+ {[%emt 0:00:25]} 54. Kf1 {[%emt 0:00:45]} Rb8 {[%emt 0:00:45]} 55. Rc3 {[%emt 0:02:28]} Nd3 {[%emt 0:00:49]} 56. Ke2 {[%emt 0:00:20]} Rxb3 {[%emt 0:00:31]} 57. Rxb3 {[%emt 0:00:48]} Nc1+ {[%emt 0:00:01]} 58. Kd2 {[%emt 0:00:16]} Nxb3+ 59. Kc3 Nd4 {[%emt 0:01:17]} 60. Kc4 {[%emt 0:00:05]} Ke5 {[%emt 0:00:42]} 61. Kxc5 {[%emt 0:00:07]} a5 {[%emt 0:00:31]} 62. Kc4 {[%emt 0:01:07]} Nc6 {[%emt 0:00:30]} 63. Kc5 {[%emt 0:00:09]} Nd4 {[%emt 0:00:05]} 64. Kc4 {[%emt 0:00:04]} Nc6 {[%emt 0:00:51]} 65. Kc5 {[%emt 0:00:05]} Nd4 {[%emt 0:00:33]} 1/2-1/2

[Event "Moscow Open-F 2019"]
[Site "Moscow"]
[Date "2019.01.29"]
[Round "5"]
[White "Aleksandrovskiy, Dmitriy"]
[Black "Ivlev, Aleksey"]
[Result "*"]
[ECO "B12"]
[WhiteElo "2299"]
[BlackElo "2326"]
[Annotator "RC"]
[PlyCount "36"]
[EventDate "2019.01.26"]
[EventType "swiss"]
[EventCountry "RUS"]
[SourceTitle "playchess.com"]
[Source "ChessBase"]
[SourceQuality "1"]
[TimeControl "40/5400+30:1800+30"]

1. e4 {[%emt 0:00:00]} c6 {[%emt 0:02:54]} 2. d4 {[%emt 0:00:00]} d5 {[%emt 0:00:59]} 3. Nd2 {[%emt 0:00:00]} g6 {[%emt 0:00:05]} 4. Ngf3 {[%emt 0:01:17]} Bg7 {[%emt 0:00:06]} 5. c3 {[%emt 0:00:29]} Nh6 {[%emt 0:00:33]} 6. Bd3 {[%emt 0:01:59]} O-O {[%emt 0:00:20]} 7. O-O {[%emt 0:00:27]} f6 {[%emt 0:00:16]} 8. Re1 {[%emt 0:01:28]} Nf7 {[%emt 0:00:06]} 9. b4 {[%emt 0:07:03]} e5 {[%emt 0:02:12]} 10. b5 {[%emt 0:07:52]} Re8 {[%emt 0:20:02]} 11. bxc6 {[%emt 0:03:36]} bxc6 {[%emt 0:00:35]} 12. dxe5 {[%emt 0:00:20]} fxe5 {[%emt 0:01:03]} 13. Ba3 {[%emt 0:02:33]} Nd7 {[%emt 0:01:36]} 14. Qa4 {[%emt 0:05:05]} Qc7 {[%emt 0:07:00]} 15. Rab1 {[%emt 0:05:08]} Nf6 {[%emt 0:08:07]} 16. Bb4 {[%emt 0:05:04]} a5 {[%emt 0:07:04]} 17. Bc5 {[%emt 0:00:17]} Nd7 {[%emt 0:00:42]} 18. Ba3 {[%emt 0:00:24]} Bf8 {[%emt 0:00:39]} *

[Event "Moscow Open-F 2019"]
[Site "Moscow"]
[Date "2019.01.29"]
[Round "5"]
[White "Rudometov, Maxim"]
[Black "Yanko, Ivan"]
[Result "*"]
[ECO "A48"]
[WhiteElo "2265"]
[BlackElo "1906"]
[Annotator "RC"]
[PlyCount "26"]
[EventDate "2019.01.26"]
[EventType "swiss"]
[EventCountry "RUS"]
[SourceTitle "playchess.com"]
[Source "ChessBase"]
[SourceQuality "1"]
[TimeControl "40/5400+30:1800+30"]

1. d4 Nf6 2. Nf3 g6 3. Nbd2 Bg7 4. e4 d6 5. Bb5+ c6 6. Bd3 c5 7. c3 O-O 8. O-O Bd7 9. Qe2 Ne8 10. Nb3 cxd4 11. cxd4 Nc6 12. d5 Nb4 13. Bb1 Rc8 *

[Event "Moscow Open-F 2019"]
[Site "Moscow"]
[Date "2019.01.29"]
[Round "5"]
[White "Teiitbaev, Aktilek"]
[Black "Dulguun Altankhuyag"]
[Result "*"]
[ECO "C65"]
[WhiteElo "2229"]
[BlackElo "1681"]
[Annotator "NA RC"]
[PlyCount "118"]
[EventDate "2019.01.26"]
[EventType "swiss"]
[EventCountry "RUS"]
[SourceTitle "playchess.com"]
[Source "ChessBase"]
[SourceQuality "1"]
[TimeControl "40/5400+30:1800+30"]

1. e4 {[%emt 0:00:00]} e5 {[%emt 0:05:59]} 2. Nf3 {[%emt 0:00:00]} Nc6 {[%emt 0:00:05]} 3. Bb5 {[%emt 0:00:00]} Nf6 {[%emt 0:00:30]} 4. d3 {[%emt 0:00:06]} d6 {[%emt 0:00:08]} 5. Nc3 {[%emt 0:00:31]} Bg4 {[%emt 0:00:05]} 6. h3 {[%emt 0:01:22] C65: Ruy Lopez: Berlin Defence (3...Nf6), unusual lines and 4 0-0 Bc5} Bh5 {[%emt 0:00:48]} 7. Bg5 {[%emt 0:00:45]} Be7 {[%emt 0:00:06]} 8. g4 {[%emt 0:01:01]} Bg6 {[%emt 0:00:08]} 9. Qd2 {[%emt 0:00:37]} a6 {[%emt 0:00:31]} (9... O-O 10. h4 h5 11. Bxf6 Bxf6 12. g5 Be7 13. O-O-O a6 14. Bxc6 bxc6 {½-½ (34) Macho,M (1710)-Jirasek,J (1903) Klatovy 2018}) 10. Ba4 {[%emt 0:00:45]} b5 $146 {[%emt 0:04:07]} ({Predecessor:} 10... h6 11. Bxf6 Bxf6 12. Nd5 b5 13. Bb3 a5 14. a3 {1-0 (37) Meszaros,N (1552)-Niznansky,L (1684) Slovakia 2014}) 11. Bb3 {[%emt 0:02:24]} Na5 {[%emt 0:01:04]} 12. h4 {[%emt 0:15:14]} h5 {[%emt 0:00:38]} 13. Bxf6 {[%emt 0:00:28]} Nxb3 {[%emt 0:00:24]} 14. axb3 {[%emt 0:00:25]} Bxf6 {[%emt 0:00:40]} 15. g5 {[%emt 0:01:29]} Be7 {[%emt 0:00:01]} 16. Nd5 {[%emt 0:06:04]} c6 {[%emt 0:01:46]} 17. Nxe7 {[%emt 0:04:43]} Qxe7 {[%emt 0:00:38]} 18. Qe3 {[%emt 0:00:59]} c5 {[%emt 0:01:47]} 19. Nd2 {[%emt 0:00:33]} O-O {[%emt 0:00:27]} 20. Nf1 {[%emt 0:09:00]} c4 {[%emt 0:00:57]} 21. bxc4 {[%emt 0:03:13]} bxc4 {[%emt 0:00:04]} 22. dxc4 {[%emt 0:01:09]} Qb7 {[%emt 0:00:02]} 23. Nd2 {[%emt 0:06:03]} Qxb2 {[%emt 0:00:28]} 24. O-O {[%emt 0:00:14]} Qb7 {[%emt 0:04:05]} 25. Rfb1 {[%emt 0:04:18]} Qd7 {[%emt 0:00:05]} 26. Ra5 {[%emt 0:03:49]} Rfc8 {[%emt 0:01:17]} 27. f3 {[%emt 0:03:13]} Rc7 {[%emt 0:04:36]} 28. Kg2 {[%emt 0:00:57]} Rb7 29. Rb6 Rxb6 {[%emt 0:14:28]} 30. Qxb6 {[%emt 0:01:29]} Qe7 {[%emt 0:00:09]} 31. Nf1 {[%emt 0:09:56]} f6 {[%emt 0:02:26]} 32. Ne3 {[%emt 0:00:25]} fxg5 {[%emt 0:02:03]} 33. Nd5 {[%emt 0:00:16]} Qf7 {[%emt 0:00:22]} 34. Qxd6 {[%emt 0:04:33]} gxh4 {[%emt 0:02:39]} 35. Qxe5 {[%emt 0:00:59]} h3+ {[%emt 0:02:33]} 36. Kf2 {[%emt 0:00:44]} Re8 {[%emt 0:00:08]} 37. Qf4 {[%emt 0:00:37]} Qe6 {[%emt 0:02:06]} 38. Kg3 {[%emt 0:03:55]} Rf8 {[%emt 0:01:13]} 39. Qg5 h2 {[%emt 0:03:54]} 40. Kxh2 {[%emt 0:07:49]} Rxf3 {[%emt 0:00:11]} 41. Ne7+ {[%emt 0:31:23]} Kh7 {[%emt 0:31:40]} 42. Qxg6+ {[%emt 0:04:56]} Qxg6 {[%emt 0:00:01]} 43. Nxg6 Kxg6 {[%emt 0:00:01]} 44. Kg2 {[%emt 0:01:46]} (44. Rxa6+ $15 Kg5 45. Ra5+ Kg4 46. e5) 44... Rc3 {[%emt 0:00:01]} 45. c5 {[%emt 0:00:09]} Kg5 {[%emt 0:00:43]} ({Less strong is} 45... Rxc2+ 46. Kf3 $15) 46. c6+ {[%emt 0:00:40]} Kg4 {[%emt 0:00:03]} 47. Rxa6 {[%emt 0:00:05]} Rxc2+ {[%emt 0:00:18]} 48. Kg1 {[%emt 0:00:26]} Kg3 {[%emt 0:00:26]} 49. Kf1 {[%emt 0:00:21]} Kf3 {[%emt 0:00:19]} 50. Kg1 {[%emt 0:00:01]} Kxe4 {[%emt 0:00:24]} 51. Ra7 {[%emt 0:00:09]} g5 {[%emt 0:00:53]} 52. c7 {[%emt 0:00:07]} Kf3 {[%emt 0:00:28]} 53. Ra3+ {[%emt 0:00:25]} Kg4 {[%emt 0:00:04]} 54. Ra7 {[%emt 0:00:11]} Kg3 {[%emt 0:00:15]} 55. Ra3+ {[%emt 0:00:04]} Kh4 {[%emt 0:00:11]} 56. Ra7 {[%emt 0:01:08]} g4 {[%emt 0:00:45]} 57. Kf1 {[%emt 0:00:26]} Kh3 {[%emt 0:00:17]} 58. Ke1 {[%emt 0:00:15]} g3 {[%emt 0:00:17]} 59. Kd1 {[%emt 0:01:03]} Rc5 {[%emt 0:00:14]} *

[Event "Moscow Open-F 2019"]
[Site "Moscow"]
[Date "2019.01.29"]
[Round "5"]
[White "Badalyan, Shavarsh"]
[Black "Gorenshtein, Kirill"]
[Result "*"]
[ECO "A40"]
[WhiteElo "2198"]
[BlackElo "1797"]
[Annotator "NA RC"]
[PlyCount "36"]
[EventDate "2019.01.26"]
[EventType "swiss"]
[EventCountry "RUS"]
[SourceTitle "playchess.com"]
[Source "ChessBase"]
[SourceQuality "1"]
[TimeControl "40/5400+30:1800+30"]

1. d4 {[%emt 0:00:00]} e6 {[%emt 0:00:47]} 2. Nf3 {[%emt 0:00:17]} Nf6 {[%emt 0:00:30]} 3. g3 {[%emt 0:00:14]} b6 {[%emt 0:01:33]} 4. Bg2 {[%emt 0:00:07]} Bb7 {[%emt 0:00:54]} 5. O-O {[%emt 0:00:13]} c5 {[%emt 0:01:26]} 6. c4 {[%emt 0:01:00]} Be7 {[%emt 0:02:08]} 7. d5 {[%emt 0:00:13]} exd5 {[%emt 0:02:31]} 8. Nh4 {[%emt 0:00:11]} O-O {[%emt 0:07:03]} 9. cxd5 {[%emt 0:00:21]} d6 {[%emt 0:02:15]} 10. Nc3 {[%emt 0:02:05]} Qd7 {[%emt 0:05:54]} 11. a4 {[%emt 0:04:15]} Na6 {[%emt 0:03:07]} 12. e4 {[%emt 0:02:20]} Nb4 {[%emt 0:09:45]} 13. Qe2 {[%emt 0:07:09]} Ba6 {[%emt 0:06:13]} 14. Nb5 {[%emt 0:00:10]} Ne8 {[%emt 0:02:33]} 15. Nf5 {[%emt 0:01:09]} Bf6 {[%emt 0:02:20]} 16. Bh3 {[%emt 0:06:23]} Kh8 {[%emt 0:04:18]} 17. Kg2 {[%emt 0:00:06]} Bc8 {[%emt 0:06:15]} 18. Bg4 {[%emt 0:06:55]} h5 {[%emt 0:06:04]} *

[Event "Moscow Open-F 2019"]
[Site "Moscow"]
[Date "2019.01.29"]
[Round "5"]
[White "Oguzov, Shamil"]
[Black "Bazarov, Vladimir"]
[Result "*"]
[ECO "B07"]
[WhiteElo "2196"]
[BlackElo "1800"]
[Annotator "NA RC"]
[PlyCount "32"]
[EventDate "2019.01.26"]
[EventType "swiss"]
[EventCountry "RUS"]
[SourceTitle "playchess.com"]
[Source "ChessBase"]
[SourceQuality "1"]
[TimeControl "40/5400+30:1800+30"]

1. e4 {[%emt 0:00:00]} d6 {[%emt 0:03:44]} 2. d4 {[%emt 0:00:00]} Nf6 {[%emt 0:00:04]} 3. Nc3 {[%emt 0:00:00]} g6 {[%emt 0:00:03]} 4. g3 {[%emt 0:00:00]} Bg7 {[%emt 0:00:07]} 5. Bg2 {[%emt 0:00:03]} O-O {[%emt 0:01:34]} 6. Nge2 {[%emt 0:01:16]} Nbd7 {[%emt 0:05:57]} 7. h3 {[%emt 0:00:18]} c6 {[%emt 0:00:17]} 8. O-O {[%emt 0:01:06]} e5 {[%emt 0:02:00]} 9. Be3 {[%emt 0:00:06]} Nb6 {[%emt 0:07:47]} 10. b3 {[%emt 0:01:25]} exd4 {[%emt 0:07:33]} 11. Bxd4 {[%emt 0:00:54]} Be6 {[%emt 0:01:19]} 12. Qd2 {[%emt 0:01:59]} d5 {[%emt 0:04:47]} 13. e5 {[%emt 0:20:12]} Nfd7 {[%emt 0:02:04]} 14. f4 {[%emt 0:02:53]} f6 {[%emt 0:06:43]} 15. exf6 {[%emt 0:01:40]} Bxf6 {[%emt 0:01:30]} 16. Rae1 {[%emt 0:01:36]} Qc7 {[%emt 0:02:55]} *

[Event "Moscow Open-F 2019"]
[Site "Moscow"]
[Date "2019.01.29"]
[Round "5"]
[White "Ufimtsev, Egor"]
[Black "Fotin, Vladimir"]
[Result "*"]
[ECO "A30"]
[WhiteElo "2160"]
[BlackElo "2341"]
[Annotator "RC"]
[PlyCount "76"]
[EventDate "2019.01.26"]
[EventType "swiss"]
[EventCountry "RUS"]
[SourceTitle "playchess.com"]
[Source "ChessBase"]
[SourceQuality "1"]
[TimeControl "40/5400+30:1800+30"]

1. Nf3 {[%emt 0:00:00]} Nf6 {[%emt 0:02:08]} 2. c4 {[%emt 0:00:00]} e6 {[%emt 0:00:45]} 3. g3 {[%emt 0:01:05]} b6 {[%emt 0:00:12]} 4. Bg2 {[%emt 0:00:07]} Bb7 {[%emt 0:00:06]} 5. O-O {[%emt 0:00:40]} c5 {[%emt 0:00:16]} 6. Nc3 {[%emt 0:00:11]} Be7 {[%emt 0:00:24]} 7. d4 {[%emt 0:01:49]} cxd4 {[%emt 0:00:07]} 8. Qxd4 {[%emt 0:02:44]} d6 {[%emt 0:01:42]} 9. Rd1 {[%emt 0:00:13]} a6 {[%emt 0:00:21]} 10. Bg5 {[%emt 0:03:27]} Nbd7 {[%emt 0:00:21]} 11. Bxf6 {[%emt 0:19:02]} Nxf6 {[%emt 0:00:23]} 12. e4 {[%emt 0:03:24]} Qc7 {[%emt 0:01:35]} 13. e5 {[%emt 0:01:38]} dxe5 {[%emt 0:00:47]} 14. Qxe5 {[%emt 0:00:19]} Rc8 {[%emt 0:04:30]} 15. Qxc7 {[%emt 0:08:37]} Rxc7 {[%emt 0:00:08]} 16. Ne5 {[%emt 0:00:01]} Bxg2 {[%emt 0:12:07]} 17. Kxg2 {[%emt 0:00:04]} O-O {[%emt 0:11:46]} 18. Rd3 {[%emt 0:15:47]} Rb8 {[%emt 0:01:00]} 19. Rad1 {[%emt 0:01:17]} b5 20. cxb5 {[%emt 0:09:57]} axb5 {[%emt 0:03:21]} 21. Nd7 {[%emt 0:00:02]} Rbb7 {[%emt 0:02:31]} 22. Nxf6+ {[%emt 0:00:17]} gxf6 {[%emt 0:00:07]} 23. a3 {[%emt 0:04:43]} f5 {[%emt 0:01:08]} 24. Ne2 {[%emt 0:03:28]} b4 {[%emt 0:19:46]} 25. axb4 {[%emt 0:00:04]} Rxb4 {[%emt 0:00:39]} 26. b3 {[%emt 0:00:38]} Rc2 {[%emt 0:01:33]} 27. Nd4 {[%emt 0:00:10]} Rc7 {[%emt 0:00:43]} 28. Nf3 {[%emt 0:11:24]} Bf6 {[%emt 0:01:40]} 29. Nd2 {[%emt 0:01:30]} Kg7 {[%emt 0:00:32]} 30. Nc4 {[%emt 0:00:15]} Rcb7 {[%emt 0:01:22]} 31. Nd2 {[%emt 0:00:55]} Rc7 {[%emt 0:03:57]} 32. Nc4 {[%emt 0:00:03]} Kg6 {[%emt 0:00:26]} 33. f4 {[%emt 0:04:50]} Ra7 {[%emt 0:01:15]} 34. Kf3 {[%emt 0:02:02]} Ra2 {[%emt 0:00:30]} 35. R1d2 {[%emt 0:01:10]} Ra1 {[%emt 0:00:21]} 36. Re2 {[%emt 0:00:28]} Rf1+ {[%emt 0:01:58]} 37. Kg2 {[%emt 0:00:10]} Rb1 {[%emt 0:00:10]} 38. Ree3 {[%emt 0:00:47]} Rb7 {[%emt 0:02:34]} *

[Event "Moscow Open-F 2019"]
[Site "Moscow"]
[Date "2019.01.29"]
[Round "5"]
[White "Antonov, Andrey P."]
[Black "Matyunin, Maxim"]
[Result "*"]
[ECO "C01"]
[WhiteElo "2150"]
[BlackElo "2218"]
[Annotator "NA RC"]
[PlyCount "36"]
[EventDate "2019.01.26"]
[EventType "swiss"]
[EventCountry "RUS"]
[SourceTitle "playchess.com"]
[Source "ChessBase"]
[SourceQuality "1"]
[TimeControl "40/5400+30:1800+30"]

1. e4 {[%emt 0:00:00]} e6 {[%emt 0:00:00]} 2. d4 {[%emt 0:00:00]} d5 {[%emt 0:00:00]} 3. exd5 {[%emt 0:00:00]} exd5 {[%emt 0:00:00]} 4. Nf3 {[%emt 0:00:05]} Bd6 {[%emt 0:00:00]} 5. c4 {[%emt 0:00:20]} c6 {[%emt 0:00:02]} 6. Nc3 {[%emt 0:00:07]} Ne7 {[%emt 0:00:06]} 7. Bd3 {[%emt 0:00:18]} O-O {[%emt 0:00:53]} 8. O-O {[%emt 0:00:05]} Bf5 {[%emt 0:03:15]} 9. Bxf5 {[%emt 0:03:52]} Nxf5 {[%emt 0:00:09]} 10. cxd5 {[%emt 0:00:02]} cxd5 {[%emt 0:00:16]} 11. Qb3 {[%emt 0:00:03]} Nc6 {[%emt 0:25:35]} 12. Qxd5 {[%emt 0:00:25]} Nfxd4 {[%emt 0:00:37]} 13. Nxd4 {[%emt 0:00:08]} Nxd4 {[%emt 0:00:03]} 14. Rd1 {[%emt 0:00:14]} Nc2 {[%emt 0:00:28]} 15. Rb1 {[%emt 0:30:08]} Bc7 {[%emt 0:04:58]} 16. Qxb7 {[%emt 0:07:58]} Qe7 {[%emt 0:04:15]} 17. Qf3 {[%emt 0:03:26]} Nd4 {[%emt 0:06:11]} 18. Qg4 {[%emt 0:02:54]} Rad8 {[%emt 0:02:52]} *